bitfinex-derivatives/quotes_ETHF0:USTF0_20260209
["timestamp","ask_amount","ask_price","bid_price","bid_amount"]
[1770634375262,32.04615721,2023.6,2022.8,0.56510419]
[1770634375465,0.57437721,2023.5,2022.8,0.56510419]
[1770634377868,2.93492704,2023.9,2022.8,0.56510419]
[1770634378172,0.57437721,2023.7,2022.8,0.56510419]
[1770634378373,0.57437721,2023.9,2023.2,0.56510419]
[1770634378673,0.58068971,2024.1,2023.2,0.56510419]
[1770634380372,0.58068971,2024.1,2022.9,6.08633]
[1770634380373,0.57437721,2023.8,2022.9,3.51752869]
[1770634381174,0.57437721,2023.8,2023.0,0.56510419]
[1770634383078,0.58068971,2024.1,2023.6,0.56510419]
[1770634383875,0.0063125,2024.1,2023.6,0.56510419]
[1770634384279,0.57437721,2024.3,2023.6,0.56510419]
[1770634384478,31.969,2024.6,2023.6,0.56510419]
[1770634384778,0.57437721,2024.5,2023.7,0.56510419]
[1770634385472,0.5788863,2024.5,2023.8,0.56510419]
[1770634385667,0.00450909,2024.5,2023.8,0.56510419]
[1770634386577,32.54037721,2024.8,2023.8,0.56510419]
[1770634386776,32.54037721,2024.8,2023.9,0.56510419]
[1770634387280,31.965,2024.9,2023.9,0.56510419]
[1770634387483,32.5429672,2024.9,2023.9,0.568848]
[1770634387775,0.57437721,2024.8,2023.9,0.568848]
[1770634391772,32.53337721,2024.7,2023.9,0.568848]
[1770634392181,0.5779672,2024.9,2023.9,0.568848]
[1770634392383,32.53337721,2024.8,2023.9,0.568848]
[1770634392573,0.57437721,2024.7,2023.9,0.568848]
[1770634392978,32.53337721,2024.8,2024.1,0.56510419]
[1770634393981,0.57437721,2024.7,2024.1,0.56510419]
[1770634394982,31.959,2024.8,2024.1,0.56510419]
[1770634395686,0.00358999,2024.9,2024.1,0.56510419]
[1770634395881,0.54464145,2024.9,2024.1,0.56510419]
[1770634396886,0.00358999,2024.9,2024.3,0.55554859]
[1770634397188,0.54105146,2024.8,2024.2,5.18370682]
[1770634397383,0.54105146,2024.8,2024.0,0.55554859]
[1770634398489,0.54105146,2024.8,2023.9,0.00374381]
[1770634398985,0.54105146,2024.8,2023.9,0.58759344]
[1770634399687,0.54105146,2024.8,2024.1,0.58384963]
[1770634400489,0.54105146,2024.8,2024.3,0.58384963]
[1770634400682,0.00358999,2024.9,2024.3,0.58384963]
[1770634400884,0.59242886,2024.9,2024.3,0.58384963]
[1770634401085,0.59242886,2024.9,2024.2,0.24725]
[1770634401284,0.59242886,2024.9,2024.1,0.58384963]
[1770634401887,0.59242886,2024.9,2023.9,0.58759344]
[1770634402289,0.59242886,2024.9,2023.6,4.6598416]
[1770634402290,0.58883887,2024.6,2023.6,0.24731]
[1770634402583,0.58883887,2024.4,2023.5,0.58384963]
[1770634402990,0.58883887,2024.4,2023.3,0.58384963]
[1770634403383,0.58883887,2024.4,2023.5,0.58384963]
[1770634406988,0.58883887,2024.6,2023.7,0.58384963]
[1770634407388,0.00358999,2024.9,2023.7,0.58384963]
[1770634407389,0.58883887,2024.8,2023.8,0.58384963]
[1770634407690,0.58883887,2024.8,2024.0,0.58384963]
[1770634411093,0.58883887,2024.8,2024.1,0.58384963]
[1770634412191,0.58883887,2024.8,2024.1,3.53627413]
[1770634412397,0.58883887,2024.8,2024.2,0.58384963]
[1770634412891,0.58883887,2024.8,2023.8,4.99638123]
[1770634413091,3.5056492,2024.8,2023.6,4.99638123]
[1770634413297,0.58883887,2024.6,2023.6,0.58384963]
[1770634414399,0.58883887,2024.5,2023.6,0.58384963]
[1770634416196,0.58883887,2024.7,2023.8,0.58384963]
[1770634423612,0.58883887,2024.7,2024.0,0.58384963]
[1770634424010,0.58883887,2024.7,2023.6,4.4125316]
[1770634424206,0.58883887,2024.7,2023.5,0.58384963]
[1770634424603,0.58883887,2024.6,2023.5,0.58384963]
[1770634426513,3.5056492,2024.6,2023.5,0.58384963]
[1770634426711,0.57620837,2024.5,2023.5,0.58384963]
[1770634426913,0.57620837,2024.1,2023.3,0.04384563]
[1770634427219,0.57620837,2023.9,2023.3,0.04384563]
[1770634428113,0.57620837,2023.9,2023.3,0.59334407]
[1770634428408,0.57620837,2023.9,2023.3,0.04384563]
[1770634430914,0.57620837,2023.7,2022.7,0.54949844]
[1770634431118,0.57620837,2023.6,2022.7,0.54949844]
[1770634431714,0.57620837,2023.6,2022.5,0.54949844]
[1770634431922,0.57620837,2023.6,2022.5,0.5558877]
[1770634435020,0.57620837,2023.6,2022.6,0.54949844]
[1770634436823,0.57620837,2023.6,2022.5,0.25383926]
[1770634437021,0.57620837,2023.6,2022.5,0.00638926]
[1770634437725,0.57620837,2023.6,2022.5,0.5558877]
[1770634439919,0.57620837,2023.6,2022.6,0.54949844]
[1770634440524,0.57620837,2023.6,2022.8,0.54949844]
[1770634441627,0.57620837,2023.6,2022.6,0.54949844]
[1770634442225,0.57620837,2023.6,2022.7,0.54949844]
[1770634442423,0.57620837,2023.5,2022.7,0.54949844]
[1770634442721,0.57620837,2023.5,2022.9,0.54949844]
[1770634443020,0.57620837,2023.5,2022.5,0.00638926]
[1770634443322,0.57620837,2023.5,2021.9,0.52305797]
[1770634443323,0.57620837,2023.1,2021.9,0.52305797]
[1770634443520,0.57620837,2023.1,2021.2,5.89398846]
[1770634443521,0.57620837,2023.1,2021.6,0.52305797]
[1770634443825,0.57620837,2022.9,2021.6,0.52305797]
[1770634444026,0.57620837,2022.7,2021.6,0.52305797]
[1770634444226,0.58077562,2022.7,2021.6,0.52834407]
[1770634445622,0.58077562,2022.7,2022.2,0.52470177]
[1770634445623,0.00456725,2022.7,2022.2,0.52470177]
[1770634445825,0.00456725,2022.7,2022.1,0.2475]
[1770634445826,0.57703181,2022.7,2022.1,0.77220177]
[1770634447424,0.57703181,2022.7,2021.7,0.49891847]
[1770634455634,0.57250195,2022.5,2021.7,0.49891847]
[1770634457134,4.36050195,2022.6,2021.9,0.50112617]
[1770634457435,0.57250195,2022.5,2021.9,0.50112617]
[1770634463837,0.57250195,2022.5,2021.8,0.7470239]
[1770634464538,0.57250195,2022.5,2021.9,0.49967841]
[1770634465836,0.54954302,2022.7,2022.1,0.49967841]
[1770634467142,0.54954302,2022.7,2022.0,0.74905566]
[1770634467343,0.54954302,2022.7,2022.1,0.50153566]
[1770634469148,0.54954302,2022.7,2022.0,0.75073643]
[1770634469835,0.54954302,2022.7,2022.0,0.24752]
[1770634470143,0.54954302,2022.7,2021.8,0.50321643]
[1770634473146,0.54871958,2022.6,2021.8,0.50321643]
[1770634474847,0.54871958,2022.6,2021.7,3.4630164]
[1770634475240,0.54871958,2022.6,2021.8,0.49998341]
[1770634479347,0.54871958,2022.5,2021.8,0.49998341]
[1770634485452,0.59014402,2022.5,2021.8,0.49998341]
[1770634486356,0.99551534,2022.7,2021.9,6.08933]
[1770634486556,10.65985428,2023.5,2021.9,6.08933]
[1770634486557,0.59430432,2023.2,2022.6,0.24744]
[1770634486750,0.59430432,2023.8,2022.7,2.96303299]
[1770634486956,0.59430432,2023.6,2022.8,2.96303299]
[1770634487157,0.59430432,2023.6,2022.7,2.96303299]
[1770634487559,0.59430432,2023.5,2022.7,2.96303299]
[1770634488161,0.59430432,2023.5,2022.7,0.07153019]
[1770634489759,0.59014402,2023.4,2022.6,3.21047299]
[1770634489968,0.59014402,2023.4,2022.6,0.24744]
[1770634490264,0.59014402,2023.3,2022.6,0.24744]
[1770634490858,0.59014402,2023.3,2022.6,0.3198646]
[1770634492859,0.59014402,2023.3,2022.7,0.07146438]
[1770634497067,0.59014402,2023.2,2022.7,0.07146438]
[1770634498568,0.59014402,2023.4,2022.7,0.07146438]
[1770634499770,0.59014402,2023.3,2022.6,0.24744]
[1770634500165,0.59014402,2023.2,2022.6,0.28109189]
[1770634500973,10.48054402,2023.2,2022.4,0.03079841]
[1770634501174,0.59014402,2023.1,2022.4,0.03079841]
[1770634501868,0.59014402,2023.1,2022.5,0.03079841]
[1770634502271,0.59014402,2023.0,2022.5,0.03079841]
[1770634503569,0.59014402,2023.4,2022.5,0.03079841]
[1770634503770,0.59014402,2023.2,2022.5,0.03079841]
[1770634504076,0.59014402,2023.5,2022.9,0.03112703]
[1770634504571,0.59014402,2023.3,2022.9,0.03112703]
[1770634505580,0.59014402,2023.4,2022.9,0.03112703]
[1770634506277,0.593956,2023.6,2022.9,0.03112703]
[1770634506678,0.593956,2023.6,2023.1,0.03005671]
[1770634506878,0.593956,2023.6,2023.1,0.03640832]
[1770634507080,10.48054402,2023.5,2023.1,0.03640832]
[1770634507478,9.8904,2023.5,2023.1,0.03640832]
[1770634507982,0.00381198,2023.6,2023.1,0.03640832]
[1770634508171,0.59014402,2023.7,2023.1,0.03640832]
[1770634508372,10.48054402,2023.7,2023.1,0.03640832]
[1770634508774,0.59014402,2023.6,2023.1,0.03640832]
[1770634509174,0.59621838,2023.6,2023.1,0.03640832]
[1770634510079,0.59014402,2023.5,2023.1,0.03640832]
[1770634510681,10.48054402,2023.5,2023.1,0.03640832]
[1770634513083,0.59014402,2023.3,2023.1,0.00635161]
[1770634513480,0.59430432,2023.8,2023.2,0.24737]
[1770634514183,0.59430432,2023.4,2023.2,0.24737]
[1770634514678,0.59596361,2023.2,2022.6,2.94589536]
[1770634514881,0.59596361,2023.2,2022.4,2.94892839]
[1770634515077,0.59430432,2024.1,2023.1,0.24738]
[1770634515282,0.59430432,2024.1,2023.2,2.94589536]
[1770634515580,0.59430432,2024.1,2023.5,2.94589536]
[1770634515778,0.59431318,2023.8,2023.5,2.94589536]
[1770634515979,0.59431318,2023.8,2023.4,2.94589536]
[1770634516285,0.60068948,2023.8,2023.4,2.94938755]
[1770634516477,1.13371907,2023.6,2023.4,2.94938755]
[1770634516682,1.72733194,2023.6,2023.4,2.94938755]
[1770634517486,1.22733194,2023.6,2023.4,2.94938755]
[1770634517684,0.59998917,2023.8,2023.4,2.94938755]
[1770634521181,0.0063763,2023.8,2023.5,0.00093987]
[1770634521388,0.594082,2023.9,2023.5,0.00093987]
[1770634522089,0.594082,2023.9,2023.4,2.95032742]
[1770634522291,0.594082,2023.9,2023.4,2.94938755]
[1770634522590,0.59771815,2023.9,2023.5,0.24733]
[1770634523289,0.59771815,2023.9,2023.4,0.00349219]
[1770634530291,0.59771815,2023.9,2023.1,2.94589536]
[1770634530496,0.59771815,2023.9,2022.9,2.33724183]
[1770634530893,0.59771815,2023.9,2022.7,5.00331191]
[1770634531403,0.59771815,2023.9,2022.7,5.00957023]
[1770634531596,0.59771815,2023.9,2022.8,0.24742]
[1770634531996,0.59771815,2023.9,2022.9,0.58045034]
[1770634535301,0.59771815,2023.9,2023.0,0.58968798]
[1770634539305,0.59771815,2023.9,2023.2,0.59202868]
[1770634539501,0.59771815,2023.9,2023.1,0.24738]
[1770634540301,0.59771815,2023.9,2023.1,0.83940868]
[1770634540496,0.59771815,2023.9,2023.1,0.24738]
[1770634542700,0.59771815,2023.9,2023.2,0.59202868]
[1770634546104,0.59771815,2023.9,2023.4,0.53762778]
[1770634546306,11.667,2024.5,2023.3,0.24736]
[1770634546307,0.55942463,2024.5,2023.6,0.53762778]
[1770634546806,0.55942463,2024.5,2023.5,4.42286157]
[1770634547008,0.55942463,2024.5,2023.3,0.53762778]
[1770634547203,0.56292227,2024.5,2023.3,0.53762778]
[1770634548309,0.55942463,2024.3,2023.3,0.53762778]
[1770634549101,0.55942463,2024.3,2023.5,0.53762778]
[1770634556419,0.55942463,2024.3,2023.6,0.53762778]
[1770634557114,0.55942463,2024.3,2023.5,4.96048935]
[1770634557313,0.55942463,2024.3,2023.5,0.53762778]
[1770634558318,0.55942463,2024.3,2023.4,4.67021157]
[1770634558622,0.55942463,2024.3,2023.5,0.53762778]
[1770634560119,0.55942463,2024.3,2023.7,0.53762778]
[1770634560316,0.55942463,2024.3,2023.6,0.24732]
[1770634560520,0.55942463,2024.3,2023.6,0.78494778]
[1770634560721,0.55942463,2024.3,2023.6,0.24732]
[1770634562133,0.55942463,2024.1,2023.7,0.53762778]
[1770634565328,0.55942463,2024.1,2023.6,0.24732]
[1770634565527,0.55942463,2024.1,2023.4,4.42286157]
[1770634565726,0.55942463,2024.1,2023.5,0.53762778]
[1770634566430,0.55942463,2024.1,2023.6,0.53762778]
[1770634567229,0.59814791,2024.5,2024.0,0.03048363]
[1770634567427,0.59814791,2024.5,2023.9,0.24728]
[1770634568034,0.59465027,2024.4,2023.7,4.43423288]
[1770634568234,0.59465027,2024.4,2023.6,4.43423288]
[1770634569035,0.59465027,2024.4,2023.6,4.80082757]
[1770634569632,0.59453064,2024.3,2023.7,0.24731]
[1770634570236,0.59453064,2024.3,2023.9,0.03649858]
[1770634570534,0.57640098,2024.4,2023.9,0.03649858]
[1770634571134,0.00349764,2024.5,2023.9,0.03649858]
[1770634571337,0.57989862,2024.5,2023.9,0.03649858]
[1770634571835,0.00349764,2024.5,2024.0,0.03649858]
[1770634572336,0.58176798,2024.5,2024.1,0.03649858]
[1770634572530,0.58176798,2024.5,2023.9,4.43423288]
[1770634572531,0.58176798,2024.5,2023.9,4.46699274]
[1770634572736,0.58176798,2024.5,2023.7,4.43423288]
[1770634572932,0.57827034,2024.2,2023.6,4.83358743]
[1770634573440,0.57827034,2024.2,2023.7,0.03275986]
[1770634573735,0.57827034,2024.2,2023.8,0.03275986]
[1770634575840,0.57827034,2024.2,2023.7,4.71674188]
[1770634576040,0.59352973,2024.4,2023.8,0.035199]
[1770634576642,0.59352973,2024.4,2023.9,0.02930044]
[1770634576837,0.59352973,2024.1,2023.6,6.26374345]
[1770634577043,0.59352973,2024.1,2023.6,0.39589513]
[1770634577236,0.59352973,2024.1,2023.6,6.29304389]
[1770634577940,0.59352973,2024.1,2023.7,0.02939783]
[1770634578334,0.00349764,2024.5,2023.7,5.92654659]
[1770634578335,0.5798544,2024.4,2023.7,5.92654659]
[1770634578536,0.5798544,2024.4,2023.9,0.03028003]
[1770634578942,5.5206544,2024.4,2023.9,0.03028003]
[1770634579144,0.5798544,2024.3,2023.9,0.03028003]
[1770634580744,4.9408,2024.2,2023.7,5.89714876]
[1770634580941,0.57974043,2024.1,2023.6,6.26374345]
[1770634581135,0.57974043,2024.1,2023.5,5.89714876]
[1770634581441,0.57974043,2024.1,2023.1,8.91180516]
[1770634581442,0.57974043,2023.8,2022.9,0.03050797]
[1770634581747,0.57974043,2023.8,2022.9,0.36528668]
[1770634581946,0.57974043,2023.8,2022.7,0.03676629]
[1770634582344,0.57981326,2023.4,2022.7,0.00625832]
[1770634582548,0.57981326,2023.4,2022.7,0.03662063]
[1770634582942,0.57981326,2023.4,2022.9,0.03036231]
[1770634583148,0.57981326,2023.2,2022.8,0.24742]
[1770634583543,0.57981326,2023.0,2022.8,0.24742]
[1770634583744,0.57981326,2023.2,2022.7,0.03662063]
[1770634584147,0.57981326,2023.4,2022.9,0.03036231]
[1770634584348,0.57981326,2023.4,2022.8,0.24742]
[1770634584650,0.57907397,2023.3,2022.8,0.24742]
[1770634584950,0.58292154,2023.3,2022.8,0.27926088]
[1770634585250,0.57907397,2023.2,2022.8,0.27926088]
[1770634586551,0.53860416,2023.8,2023.0,0.81833567]
[1770634586749,0.53860416,2023.7,2023.0,0.81833567]
[1770634587148,0.53860416,2023.5,2023.1,0.57094567]
[1770634587651,0.5444504,2023.5,2023.1,0.57094567]
[1770634587852,0.5444504,2023.5,2023.0,0.81833567]
[1770634588048,0.5444504,2023.5,2023.1,0.57094567]
[1770634588249,0.5444504,2023.5,2023.0,0.81833567]
[1770634588447,0.00584624,2023.5,2023.1,0.57094567]
[1770634588847,4.94664624,2023.5,2023.1,0.57094567]
[1770634589146,0.53860416,2023.8,2023.1,0.57094567]
[1770634589344,0.53860416,2023.7,2023.1,0.57094567]
[1770634590151,0.00370127,2023.7,2023.3,0.57094567]
[1770634591155,4.94450127,2023.7,2023.3,0.57094567]
[1770634591651,0.53860416,2023.9,2023.5,0.57094567]
[1770634592355,0.53860416,2024.1,2023.5,0.57094567]
[1770634592659,0.54318756,2024.1,2023.5,0.57094567]
[1770634594557,0.0045834,2024.1,2023.5,0.57094567]
[1770634594758,0.0045834,2024.1,2023.6,0.57094567]
[1770634595152,0.54318756,2024.1,2023.6,0.57094567]
[1770634595353,0.0045834,2024.1,2023.6,0.57094567]
[1770634595552,0.54318756,2024.1,2023.6,0.57094567]
[1770634596460,0.0045834,2024.1,2023.6,0.57094567]
[1770634598255,0.54318756,2024.1,2023.6,0.57094567]
[1770634598457,0.0045834,2024.1,2023.6,0.57094567]
[1770634599156,0.54318756,2024.1,2023.6,0.57094567]
[1770634599357,0.54318756,2024.1,2023.2,3.5220801]
[1770634599556,0.54318756,2024.1,2023.3,0.57094567]
[1770634600157,0.54318756,2024.1,2023.3,3.5220801]
[1770634600365,0.54318756,2024.1,2023.4,0.57094567]
[1770634605267,0.54318756,2024.1,2023.5,0.54538863]
[1770634606168,0.0045834,2024.1,2023.7,0.54538863]
[1770634606368,0.55401301,2024.3,2023.7,0.54538863]
[1770634606568,0.55401301,2024.3,2023.8,0.54538863]
[1770634607162,0.55401301,2024.5,2023.8,0.54538863]
[1770634607369,0.55401301,2024.5,2023.9,0.54538863]
[1770634607370,0.55938391,2024.5,2023.9,0.54538863]
[1770634607568,0.55938391,2024.5,2023.7,3.49652306]
[1770634607770,0.55938391,2024.5,2023.8,0.54538863]
[1770634607970,0.55938391,2024.5,2023.8,3.49652306]
[1770634608270,0.55938391,2024.5,2023.8,0.54538863]
[1770634609473,0.55938391,2024.5,2023.7,3.49652306]
[1770634610275,0.55938391,2024.5,2023.8,0.54538863]
[1770634610477,0.55938391,2024.5,2023.7,2.95113443]
[1770634610781,0.55938391,2024.5,2023.7,3.49652306]
[1770634611171,0.55938391,2024.5,2023.8,0.54538863]
[1770634612979,0.55938391,2024.5,2023.7,2.95113443]
[1770634613289,0.55938391,2024.5,2023.5,4.42860933]
[1770634613290,0.55401301,2024.3,2023.3,2.95113443]
[1770634613584,0.55401301,2024.3,2023.3,0.54538863]
[1770634614585,0.55401301,2024.3,2023.2,2.95113443]
[1770634614781,0.55401301,2024.3,2023.1,3.49652306]
[1770634614981,0.55401301,2024.3,2023.2,0.54538863]
[1770634615685,0.55401301,2024.3,2023.3,0.54538863]
[1770634615988,0.55401301,2024.3,2023.4,0.54538863]
[1770634617187,0.55401301,2024.3,2023.5,0.54538863]
[1770634620089,0.55401301,2024.3,2023.4,3.49652306]
[1770634620488,0.55401301,2024.3,2023.4,0.54538863]
[1770634622486,0.55401301,2024.3,2023.2,4.42860933]
[1770634622487,0.24726,2024.1,2023.1,2.35604196]
[1770634622788,0.55401301,2023.8,2022.8,0.54538863]
[1770634622986,0.55401301,2023.6,2022.8,0.54538863]
[1770634624085,0.55401301,2023.4,2022.8,0.54538863]
[1770634626587,0.55401301,2023.6,2022.8,0.54538863]
[1770634627691,0.55401301,2023.5,2022.8,0.54538863]
[1770634631689,0.55401301,2023.5,2022.2,0.54538863]
[1770634632691,0.55401301,2023.5,2022.2,0.55101638]
[1770634633393,0.55401301,2023.5,2022.4,0.54538863]
[1770634633891,0.55401301,2023.5,2022.5,0.54538863]
[1770634637698,0.59150544,2023.3,2022.5,0.54538863]
[1770634640990,0.59150544,2023.3,2022.3,0.24748]
[1770634641203,0.59150544,2023.3,2022.2,0.88924751]
[1770634641402,0.59150544,2023.3,2022.3,0.54476246]
[1770634643603,0.59150544,2023.1,2022.3,0.54476246]
[1770634643996,1.464,2023.2,2022.7,0.54476246]
[1770634644291,0.59150544,2023.4,2022.7,0.54476246]
[1770634644703,0.59150544,2023.6,2022.9,0.54476246]
[1770634646402,31.958,2023.7,2022.9,0.54476246]
[1770634647205,31.958,2023.7,2023.1,0.54476246]
[1770634648499,0.59150544,2024.0,2023.3,0.54476246]
[1770634649903,32.56250544,2024.2,2023.3,0.54476246]
[1770634650610,0.59150544,2024.1,2023.3,0.54476246]
[1770634651420,32.56250544,2024.2,2023.3,0.54476246]
[1770634652301,31.971,2024.2,2023.5,0.54476246]
[1770634652507,0.59150544,2024.4,2023.5,0.54476246]
[1770634653814,0.59150544,2024.4,2023.2,0.54476246]
[1770634658314,0.59150544,2024.2,2023.2,0.54476246]
[1770634659514,0.59150544,2024.2,2023.3,0.54476246]
[1770634659708,0.59150544,2024.2,2023.2,0.24736]
[1770634659709,0.59150544,2024.2,2023.5,0.54476246]
[1770634659908,2.05550544,2024.3,2023.5,0.54476246]
[1770634660415,0.59150544,2024.2,2023.5,0.54476246]
[1770634661109,2.05550544,2024.3,2023.5,0.54476246]
[1770634661613,0.59150544,2024.4,2023.7,0.54476246]
[1770634661916,0.59150544,2024.4,2023.7,0.54955928]
[1770634672219,0.59150544,2024.4,2023.7,0.00479682]
[1770634673920,0.59150544,2024.4,2023.7,0.54858503]
[1770634679116,1.95464203,2024.3,2023.7,0.00479682]
[1770634679317,0.57228678,2024.2,2023.7,0.00479682]
[1770634679920,0.57228678,2024.2,2023.7,0.54858503]
[1770634680316,0.57228678,2024.4,2023.7,0.00479682]
[1770634680517,0.57228678,2024.4,2023.7,0.54858503]
[1770634681428,0.57228678,2024.4,2023.7,0.00479682]
[1770634682123,0.38113283,2023.7,2022.8,0.54378821]
[1770634682427,0.38113283,2023.7,2022.6,0.54378821]
[1770634682620,0.3813633,2023.3,2022.4,0.54378821]
[1770634682821,31.956,2023.2,2022.5,0.54378821]
[1770634683122,31.956,2023.2,2022.5,0.54790359]
[1770634683329,31.956,2023.2,2022.6,0.54378821]
[1770634684030,0.3813633,2023.4,2022.6,0.54378821]
[1770634684217,41.21489922,2023.6,2022.7,0.54378821]
[1770634684419,40.8,2023.6,2022.7,0.54378821]
[1770634684722,40.8,2023.6,2022.9,0.54378821]
[1770634685231,32.37289922,2023.7,2022.9,0.54378821]
[1770634685429,0.41489922,2023.6,2022.9,0.54378821]
[1770634690830,0.41052348,2023.8,2022.9,0.54378821]
[1770634691534,0.41052348,2024.2,2023.1,0.54378821]
[1770634692025,31.962,2024.3,2022.9,0.54378821]
[1770634692026,0.41052348,2024.0,2022.9,0.54378821]
[1770634695230,0.41052348,2024.0,2023.0,0.53908301]
[1770634697332,0.41052348,2024.0,2022.6,6.08717]
[1770634697333,0.1432104,2023.8,2022.6,0.53908301]
[1770634697531,0.1432104,2023.8,2022.5,0.00411538]
[1770634697532,0.1432104,2023.3,2022.0,0.53908301]
[1770634697835,0.1432104,2023.3,2021.0,13.47053731]
[1770634697836,0.1432104,2022.9,2021.8,0.53908301]
[1770634698133,0.14296193,2022.7,2021.8,0.53908301]
[1770634698532,0.14688813,2022.7,2021.8,0.54350407]
[1770634701135,0.0039262,2022.7,2021.8,0.54350407]
[1770634703330,0.0039262,2022.7,2021.8,0.79104407]
[1770634703527,32.12367464,2023.2,2022.0,0.55956267]
[1770634703732,0.15967464,2023.1,2022.0,0.55956267]
[1770634703941,40.95967464,2023.0,2022.0,0.55956267]
[1770634704637,0.15591174,2022.9,2022.0,0.55956267]
[1770634709344,40.95574736,2023.0,2022.0,0.55956267]
[1770634709544,0.15041359,2022.9,2022.0,0.55956267]
[1770634711340,40.80533377,2023.0,2022.2,0.55956267]
[1770634711341,0.00533377,2023.0,2022.2,0.55956267]
[1770634712745,0.15691814,2023.0,2022.2,0.55956267]
[1770634721753,0.00533377,2023.0,2022.2,0.55956267]
[1770634722657,0.14664528,2023.0,2022.2,0.55956267]
[1770634723759,0.14131151,2022.8,2022.2,0.55956267]
[1770634726257,0.15051223,2022.9,2022.2,0.55956267]
[1770634726561,0.15051223,2022.8,2022.2,0.55956267]
[1770634727461,4.15083649,2022.7,2022.2,0.55956267]
[1770634727661,1.464,2022.7,2022.2,0.55956267]
[1770634731567,0.146267,2022.9,2022.2,0.55956267]
[1770634734472,4.1865967,2022.8,2022.2,0.55956267]
[1770634734670,0.14079583,2022.9,2022.2,0.55956267]
[1770634734968,0.14079583,2022.9,2022.0,0.57509642]
[1770634734969,0.14079583,2022.7,2022.0,0.57509642]
[1770634735174,36.30577001,2022.6,2022.0,0.57509642]
[1770634735369,32.11979583,2022.6,2022.0,0.57509642]
[1770634737973,0.13496754,2022.5,2022.0,0.57509642]
[1770634740674,31.979,2022.6,2022.0,0.57509642]
[1770634741569,32.10987889,2022.6,2022.0,0.57509642]
[1770634741975,0.13087889,2022.5,2022.0,0.57509642]
[1770634743469,0.13207983,2022.3,2021.9,0.57509642]
[1770634743676,31.979,2022.6,2021.9,0.57509642]
[1770634743878,4.19210143,2022.5,2021.9,0.57509642]
[1770634744070,31.979,2022.6,2021.9,0.57509642]
[1770634744270,4.19163746,2022.5,2021.9,0.57509642]
[1770634744475,32.51730133,2022.6,2021.9,0.57509642]
[1770634744677,4.19182737,2022.5,2021.9,0.57509642]
[1770634744872,32.51730133,2022.6,2021.9,0.57509642]
[1770634745176,4.19210483,2022.5,2021.9,0.57509642]
[1770634745378,4.19210483,2022.5,2021.8,0.00442106]
[1770634745379,3.41571251,2023.1,2022.1,0.57509642]
[1770634745569,0.53830133,2022.8,2022.3,0.57509642]
[1770634747275,32.5246351,2023.0,2022.3,0.57509642]
[1770634747475,4.19447345,2022.9,2022.3,0.57509642]
[1770634747672,4.19447345,2022.8,2022.3,0.57509642]
[1770634748077,4.73277478,2022.8,2022.3,0.57509642]
[1770634748281,0.53830133,2022.8,2022.3,0.57509642]
[1770634750482,32.5246351,2023.0,2022.3,0.57509642]
[1770634750671,0.53830133,2022.8,2022.3,0.57509642]
[1770634751676,0.53830133,2022.9,2022.3,0.57509642]
[1770634751982,32.5246351,2023.0,2022.5,0.57509642]
[1770634752180,0.53830133,2022.9,2022.5,0.57509642]
[1770634753778,0.53830133,2022.9,2022.4,0.57509642]
[1770634754079,0.53830133,2022.7,2022.0,0.57509642]
[1770634755487,4.23166941,2022.6,2022.0,0.57509642]
[1770634755685,35.42142681,2023.0,2022.0,0.57509642]
[1770634755879,31.98633377,2023.0,2022.4,0.55647038]
[1770634756580,32.54401563,2023.0,2022.4,0.55647038]
[1770634756784,31.98633377,2023.0,2022.4,0.55647038]
[1770634756983,32.54401563,2023.0,2022.4,0.55647038]
[1770634758486,0.57045239,2022.9,2022.4,0.55647038]
[1770634759391,0.57045239,2022.9,2022.0,0.54110244]
[1770634762093,31.98633377,2023.0,2022.2,0.54110244]
[1770634762288,32.55678616,2023.0,2022.2,0.54110244]
[1770634762490,31.98633377,2023.0,2022.2,0.54110244]
[1770634762987,32.55678616,2023.0,2022.4,0.54110244]
[1770634766693,0.57045239,2022.9,2022.3,0.54110244]
[1770634767291,0.57045239,2022.9,2022.1,0.24751]
[1770634767495,0.57045239,2022.7,2022.2,0.54110244]
[1770634769397,0.57045239,2022.7,2022.1,0.24751]
[1770634769697,0.57045239,2022.7,2022.1,0.78861244]
[1770634769997,0.57045239,2022.7,2022.2,0.54110244]
[1770634771792,0.57045239,2022.7,2022.1,0.24751]
[1770634771992,0.57045239,2022.7,2022.2,0.54110244]
[1770634774399,0.57045239,2022.9,2022.2,0.54110244]
[1770634782719,0.57045239,2022.9,2022.0,0.54110244]
[1770634782902,0.57045239,2022.7,2022.0,0.54110244]
[1770634784103,0.57045239,2022.8,2022.1,0.54110244]
[1770634785610,2.87741118,2022.9,2022.1,0.54110244]
[1770634785611,0.56036291,2022.9,2022.1,0.54110244]
[1770634787208,34.86374495,2023.0,2022.3,0.57463332]
[1770634787209,31.98633377,2023.0,2022.3,0.57463332]
[1770634787711,32.54669668,2023.0,2022.3,0.57463332]
[1770634788607,0.56036291,2022.9,2022.3,0.57463332]
[1770634792212,32.54669668,2023.0,2022.3,0.57463332]
[1770634792516,0.56036291,2022.9,2022.3,0.57463332]
[1770634798918,0.56036291,2022.8,2022.3,0.57463332]
[1770634800017,0.56036291,2022.9,2022.3,0.57463332]
[1770634800722,32.54669668,2023.0,2022.5,0.57463332]
[1770634801022,0.56036291,2022.9,2022.4,0.57463332]
[1770634801818,30.98633377,2023.0,2022.6,0.57463332]
[1770634802019,2.90984235,2023.5,2022.8,0.57463332]
[1770634802322,0.56036291,2023.6,2023.0,0.57463332]
[1770634803124,0.56511037,2023.6,2023.0,0.57463332]
[1770634803328,0.00474746,2023.6,2023.0,0.57463332]
[1770634803618,0.56036291,2024.0,2023.2,0.57463332]
[1770634803824,0.56036291,2024.1,2023.2,0.57463332]
[1770634804025,31.977,2024.2,2023.5,0.57463332]
[1770634804622,31.98099016,2024.2,2023.5,0.57821703]
[1770634804820,0.00399016,2024.2,2023.5,0.57821703]
[1770634806723,0.00399016,2024.2,2023.7,0.57463332]
[1770634806927,0.56036291,2024.6,2023.7,0.57463332]
[1770634807328,0.56036291,2024.8,2023.9,0.57463332]
[1770634807824,0.56673929,2024.8,2023.9,0.57463332]
[1770634809419,0.00637638,2024.8,2023.9,0.57463332]
[1770634809620,0.56036291,2025.2,2024.3,0.57463332]
[1770634810523,0.56036291,2025.4,2024.5,0.57463332]
[1770634810724,0.5651803,2025.4,2024.5,0.57463332]
[1770634811119,0.00481739,2025.4,2024.5,0.57463332]
[1770634811318,0.5651803,2025.4,2024.7,0.57463332]
[1770634811928,41.36036291,2025.3,2024.7,0.57463332]
[1770634812123,0.56036291,2025.2,2024.7,0.57463332]
[1770634812326,0.56036291,2025.2,2024.6,0.57463332]
[1770634812830,0.5651803,2025.4,2024.6,0.57463332]
[1770634813231,0.56036291,2025.3,2024.6,0.57463332]
[1770634813529,40.80481739,2025.4,2024.6,0.57463332]
[1770634813729,0.00481739,2025.4,2024.6,0.57463332]
[1770634814118,0.5651803,2025.4,2024.6,0.57463332]
[1770634814731,0.5651803,2025.4,2024.5,0.31537163]
[1770634814732,0.56036291,2025.8,2024.8,0.57463332]
[1770634815430,40.8,2025.9,2024.8,0.57463332]